bitfinex/quotes_ETHUSD_20250422
["timestamp","ask_amount","ask_price","bid_price","bid_amount"]
[1745309921353,6.14215703,1628.1,1627.9,0.4525204]
[1745309921593,6.14189873,1628.2,1627.9,6.5953779]
[1745309921976,6.14132444,1628.4,1628.0,6.94407872]
[1745309922175,6.14154028,1628.3,1628.0,0.8016]
[1745309922659,6.14154028,1628.3,1628.1,0.4525204]
[1745309922867,6.14175162,1628.2,1628.1,0.4525204]
[1745309923390,6.14154028,1628.3,1628.1,0.4525204]
[1745309923569,6.14154028,1628.3,1628.1,0.7884758]
[1745309924081,6.14116882,1628.4,1628.1,0.3359554]
[1745309924407,6.14062454,1628.5,1628.1,6.47802579]
[1745309924561,6.14062454,1628.5,1628.2,3.0]
[1745309924957,6.14062454,1628.5,1628.3,0.45371163]
[1745309925188,6.14099729,1628.4,1628.3,0.45371163]
[1745309925975,6.14225839,1628.1,1627.8,0.7546]
[1745309926179,6.14184575,1628.2,1627.8,3.81602577]
[1745309926382,6.14184575,1628.2,1627.9,0.33633932]
[1745309926572,12.28390412,1628.2,1627.9,0.33633932]
[1745309926788,6.14184575,1628.2,1628.0,0.45416074]
[1745309927487,6.14184575,1628.2,1628.1,0.45416074]
[1745309928264,6.14240883,1628.1,1627.9,0.45416074]
[1745309928661,6.14240883,1628.1,1628.0,0.33700464]
[1745309928865,7.37084212,1628.1,1628.0,0.33700464]
[1745309929602,6.14326746,1627.8,1627.6,0.7546]
[1745309929810,6.14314549,1627.9,1627.6,0.7546]
[1745309930103,7.37077213,1628.1,1627.7,6.14350753]
[1745309930323,6.14233884,1628.1,1627.7,6.59834661]
[1745309930498,6.14233884,1628.1,1627.8,0.33684764]
[1745309930825,12.28477581,1628.1,1627.8,0.33684764]
[1745309931030,6.14200126,1628.2,1627.8,0.33684764]
[1745309931235,6.14200126,1628.2,1627.8,6.47999834]
[1745309931594,6.14200126,1628.2,1627.9,0.3368288]
[1745309931991,6.14224316,1628.1,1627.9,0.3368288]
[1745309932289,6.14224316,1628.1,1627.8,1.30775618]
[1745309932793,6.14224316,1628.1,1627.8,7.45097538]
[1745309933644,6.14121384,1628.4,1628.0,0.7546]
[1745309933923,6.14162594,1628.3,1628.0,1.47798498]
[1745309934227,6.14189695,1628.2,1627.9,3.33652185]
[1745309934526,12.2839654,1628.2,1627.9,3.33652185]
[1745309934701,6.14225083,1628.1,1627.9,3.33652185]
[1745309934902,6.14189695,1628.2,1627.8,3.7546]
[1745309934903,6.14288346,1627.9,1627.8,3.7546]
[1745309935127,6.14253404,1628.0,1627.8,3.7546]
[1745309935713,6.14253404,1628.0,1627.8,3.0]
[1745309936122,6.75650777,1628.1,1627.8,3.0]
[1745309936322,6.14231807,1628.1,1627.8,3.0]
[1745309936533,6.14288346,1627.9,1627.8,3.0]
[1745309936721,6.14231048,1628.1,1627.7,6.1435738]
[1745309937031,6.14231048,1628.1,1627.8,3.0]
[1745309937532,6.14231048,1628.1,1627.9,0.33720491]
[1745309937836,6.14198094,1628.2,1627.9,0.33720491]
[1745309938032,6.92629808,1628.3,1627.9,6.47997]
[1745309938204,12.28384277,1628.2,1627.8,9.14313386]
[1745309938726,6.14181235,1628.2,1627.8,9.14313386]
[1745309938931,6.14215217,1628.1,1627.8,9.14313386]
[1745309939309,6.14258251,1628.0,1627.8,3.0]
[1745309939515,12.28455833,1628.1,1627.8,3.0]
[1745309939716,7.370608,1628.1,1627.9,0.33734278]
[1745309940434,6.14215217,1628.1,1627.9,0.33734278]
[1745309940636,6.14215217,1628.1,1627.8,3.0]
[1745309940935,6.14175162,1628.2,1627.7,0.46475164]
[1745309941135,6.14265083,1628.0,1627.6,9.92220701]
[1745309941324,6.14265083,1628.0,1627.7,0.33752482]
[1745309941709,12.2854967,1628.0,1627.7,0.33752482]
[1745309941910,6.14265083,1628.0,1627.7,0.33752482]
[1745309942507,6.14265083,1628.0,1627.8,0.33752482]
[1745309943543,6.14265083,1628.0,1627.6,16.98700956]
[1745309943544,6.95399324,1627.5,1627.4,0.4005853]
[1745309944238,9.95399324,1627.5,1627.4,0.4005853]
[1745309944438,11.56381058,1627.5,1627.4,0.4005853]
[1745309945041,9.95512605,1627.2,1627.1,0.1]
[1745309946450,10.42114608,1627.2,1627.1,0.1]
[1745309946847,6.14854894,1626.4,1626.3,8.6529529]
[1745309947033,6.14817091,1626.5,1626.3,8.6529529]
[1745309947210,6.14832708,1626.5,1626.3,8.6529529]
[1745309947410,6.14850247,1626.5,1626.3,8.6529529]
[1745309947646,6.14854894,1626.4,1626.3,8.6529529]
[1745309948133,6.1487419,1626.4,1626.1,0.1]
[1745309948335,6.14835655,1626.5,1626.1,0.1]
[1745309948646,6.14903814,1626.3,1626.2,0.12613438]
[1745309948846,6.14877954,1626.4,1626.2,0.12613438]
[1745309949269,6.14892701,1626.3,1626.2,0.12613438]
[1745309949474,6.14877954,1626.4,1626.2,0.12613438]
[1745309950163,6.08,1626.6,1626.2,0.12613438]
[1745309950668,6.14830039,1626.5,1626.2,0.12613438]
[1745309950873,6.688,1626.6,1626.2,0.12613438]
[1745309951176,6.14834262,1626.5,1626.2,0.12613438]
[1745309951345,12.22799158,1626.6,1626.2,6.27530407]
[1745309951553,6.14840291,1626.5,1626.2,0.12613438]
[1745309951758,6.14855735,1626.4,1626.2,0.12613438]
[1745309951937,6.14892701,1626.3,1626.2,0.12613438]
[1745309952138,6.14855735,1626.4,1626.2,0.12613438]
[1745309952339,7.91755913,1626.6,1626.2,0.12613438]
[1745309952571,6.94012339,1626.5,1626.2,0.12613438]
[1745309952870,6.14836748,1626.5,1626.2,0.12613438]
[1745309953073,6.14817091,1626.5,1626.2,0.12613438]
[1745309953246,6.14842342,1626.5,1626.2,0.12613438]
[1745309953453,12.2279401,1626.6,1626.2,0.12613438]
[1745309953649,6.08,1626.6,1626.4,0.7689]
[1745309953852,6.08,1626.6,1626.5,0.14666214]
[1745309954836,14.06532627,1626.6,1626.5,0.14666214]
[1745309955544,6.14860421,1626.4,1626.2,7.2379]
[1745309955873,6.14860421,1626.4,1626.2,6.469]
[1745309956239,6.14921837,1626.3,1626.1,0.1]
[1745309956486,6.08,1626.2,1626.1,0.1]
[1745309956890,13.45222696,1626.2,1626.1,0.1]
[1745309957465,14.27492696,1626.2,1626.1,0.1]
[1745309958808,14.27492696,1626.2,1626.1,1e-08]
[1745309958809,20.74392696,1626.2,1626.1,1e-08]
[1745309959112,6.97351805,1625.8,1625.7,0.4005853]
[1745309959407,13.05351805,1625.8,1625.7,0.4005853]
[1745309959586,14.97391383,1625.8,1625.7,0.4005853]
[1745309959908,13.05351805,1625.8,1625.7,0.4005853]
[1745309961193,12.23081805,1625.8,1625.7,0.52686458]
[1745309963094,13.05351805,1625.8,1625.7,0.52686458]
[1745309963301,13.05351805,1625.8,1625.7,0.4005853]
[1745309963496,13.05351805,1625.8,1625.7,0.52686458]
[1745309963660,14.97391383,1625.8,1625.7,0.52686458]
[1745309964597,14.97391383,1625.8,1625.7,0.4005853]
[1745309964977,14.97391383,1625.8,1625.7,0.52686458]
[1745309965172,14.15121383,1625.8,1625.7,0.52686458]
[1745309966075,6.08,1625.8,1625.7,0.52686458]
[1745309966260,6.08,1625.8,1625.7,1.35036458]
[1745309966466,12.23054839,1625.9,1625.7,1.35036458]
[1745309966687,6.08,1625.9,1625.7,1.35036458]
[1745309967399,12.23057926,1625.9,1625.7,0.52686458]
[1745309967801,6.08,1625.9,1625.7,0.52686458]
[1745309968379,6.08,1625.9,1625.8,6.15081805]
[1745309968579,6.08,1625.9,1625.8,9.97431805]
[1745309968896,6.15081805,1625.8,1625.7,0.4005853]
[1745309969083,6.1504827,1625.9,1625.7,0.4005853]
[1745309969277,6.1504827,1625.9,1625.8,0.12627928]
[1745309969683,6.15025528,1626.0,1625.8,0.12627928]
[1745309970005,6.15043975,1625.9,1625.8,0.12627928]
[1745309970704,13.61165954,1626.0,1625.8,0.12627928]
[1745309970905,6.15043975,1625.9,1625.8,0.12627928]
[1745309971698,12.23043975,1625.9,1625.8,0.12627928]
[1745309972199,13.04023975,1625.9,1625.8,0.12627928]
[1745309972396,6.15081805,1625.8,1625.7,0.4005853]
[1745309972610,6.9609964,1625.7,1625.6,0.5]
[1745309973032,6.9609964,1625.7,1625.6,0.63003835]
[1745309973724,6.9609964,1625.7,1625.6,0.49064652]
[1745309973924,13.0409964,1625.7,1625.6,0.49064652]
[1745309974089,6.15346747,1625.1,1625.0,20.0]
[1745309974289,6.15346747,1625.1,1625.0,20.12192249]
[1745309975522,6.96326747,1625.1,1625.0,20.12192249]
[1745309975723,6.96326747,1625.1,1625.0,20.0]
[1745309975909,8.88291928,1625.1,1625.0,20.0]
[1745309976218,6.96326747,1625.1,1625.0,20.0]
[1745309976430,6.15346747,1625.1,1625.0,20.0]
[1745309980043,6.96326747,1625.1,1625.0,20.0]
[1745309982023,6.15309335,1625.2,1625.0,20.0]
[1745309982199,6.15291343,1625.3,1625.0,20.0]
[1745309983731,6.15254077,1625.4,1625.0,22.69298863]
[1745309983936,6.15254077,1625.4,1625.0,20.0]
[1745309984236,6.15254077,1625.4,1625.0,26.15382848]
[1745309984446,12.30523246,1625.4,1625.0,20.0]
[1745309984618,6.15276571,1625.3,1625.0,20.0]
[1745309984813,6.152592,1625.4,1625.0,20.0]
[1745309985020,6.152592,1625.4,1625.0,26.15377303]
[1745309985021,6.08,1625.3,1625.0,26.15377303]
[1745309985234,6.08,1625.3,1625.0,29.46213563]
[1745309985839,12.23291384,1625.3,1625.0,20.0]
[1745309986042,12.23295175,1625.3,1625.0,20.0]
[1745309986210,6.08,1625.3,1625.0,20.0]
[1745309986416,6.15331393,1625.2,1625.0,20.0]
[1745309987452,6.15346747,1625.1,1625.0,20.0]
[1745309988526,13.54510561,1625.1,1625.0,20.0]
[1745309989027,13.54510561,1625.1,1625.0,19.99678239]
[1745309990118,7.46510561,1625.1,1625.0,19.99678239]
[1745309990457,6.15346747,1625.1,1625.0,19.99678239]
[1745309992630,6.70346747,1625.1,1625.0,19.99678239]
[1745309993036,16.59306747,1625.1,1625.0,19.99678239]
[1745309994071,6.15680895,1624.3,1624.1,0.8669603]
[1745309994280,6.15680895,1624.3,1624.1,0.4005853]
[1745309994435,12.31274896,1624.4,1624.1,0.4005853]
[1745309994634,6.15663036,1624.3,1624.1,0.4005853]
[1745309994859,6.15687723,1624.2,1624.1,0.4005853]
[1745309995172,6.15663036,1624.3,1624.1,0.4005853]
[1745309995329,6.15676896,1624.3,1624.1,0.4005853]
[1745309995964,6.15687723,1624.2,1624.1,0.4005853]
[1745309996180,6.92967723,1624.2,1624.1,0.4005853]
[1745309996332,6.92967723,1624.2,1624.1,0.51904628]
[1745309996844,6.92967723,1624.2,1624.1,0.4005853]
[1745309997357,6.92967723,1624.2,1624.1,0.53059562]
[1745309997556,8.29988954,1624.2,1624.1,0.4005853]
[1745309997870,8.84988954,1624.2,1624.1,0.4005853]
[1745309998371,6.15599404,1624.5,1624.1,6.55782494]
[1745309998544,6.15611988,1624.4,1624.1,0.4005853]
[1745309998749,6.15611988,1624.4,1624.2,0.13034052]
[1745309998928,6.15611988,1624.4,1624.1,0.4005853]
[1745309999134,6.15592237,1624.5,1624.2,0.13034052]
[1745309999343,6.15592237,1624.5,1624.2,0.8288]
[1745309999576,6.15592237,1624.5,1624.3,0.13012039]
[1745310000937,6.15551208,1624.6,1624.3,0.13012039]
[1745310001141,6.15560188,1624.6,1624.3,0.13012039]
[1745310001472,6.15457834,1624.9,1624.4,6.15586546]
[1745310001766,6.15461124,1624.8,1624.3,7.6966994]
[1745310001968,6.15451593,1624.9,1624.5,0.12582884]
[1745310002146,6.15451593,1624.9,1624.5,6.15572639]
[1745310002346,6.15462279,1624.8,1624.4,3.0]
[1745310002554,6.15514587,1624.7,1624.5,0.12571882]
[1745310002853,6.15536131,1624.6,1624.5,0.12571882]
[1745310003379,12.23536131,1624.6,1624.5,0.12571882]
[1745310003577,6.15626199,1624.4,1624.1,1.2293853]
[1745310003772,6.08,1624.3,1624.1,1.69221153]
[1745310004068,6.08,1624.3,1624.2,0.12560881]
[1745310004274,6.08,1624.3,1624.1,7.84919907]
[1745310004433,6.08,1624.3,1624.2,6.28248604]
[1745310004638,6.08,1624.3,1624.2,0.12560881]
[1745310004839,6.08,1624.3,1624.2,0.33973542]
[1745310005069,6.08,1624.3,1624.2,0.46534423]
[1745310005549,6.08,1624.3,1624.2,0.12560881]
[1745310005755,6.08,1624.3,1624.1,8.63411898]
[1745310006050,6.08,1624.3,1624.2,11.52469794]
[1745310006244,6.08,1624.7,1624.6,0.8288]
[1745310006576,6.08,1625.2,1624.8,0.8288]
[1745310006773,12.23222463,1625.5,1625.1,0.8288]
[1745310007072,6.15091263,1625.8,1625.2,3.12428881]
[1745310007073,6.76608116,1625.8,1625.2,3.12428881]
[1745310007368,0.61504487,1625.8,1625.2,0.12428881]
[1745310007535,6.15059041,1625.9,1625.3,6.15243592]
[1745310007736,13.2548,1626.4,1625.6,6.15138448]
[1745310007931,6.14955753,1626.2,1625.6,12.7531822]
[1745310008136,6.15024307,1626.0,1625.7,0.8288]
[1745310008337,6.1498109,1626.1,1625.7,0.8288]
[1745310008677,6.15029333,1626.0,1625.7,0.8288]
[1745310009043,6.14941551,1626.2,1625.7,0.8288]
[1745310009383,6.14915454,1626.3,1625.9,6.15043623]
[1745310009545,6.14838414,1626.5,1626.0,6.97857575]
[1745310009875,6.14813211,1626.6,1626.1,6.69954235]
[1745310010043,6.402,1626.9,1626.3,6.95428041]
[1745310010244,6.46701927,1627.0,1626.6,0.8055]
[1745310010456,6.1468912,1626.9,1626.6,0.8055]
[1745310010651,0.32048981,1627.0,1626.7,6.14740524]
[1745310010882,0.32048981,1627.0,1626.7,0.69529052]
[1745310011071,6.14719878,1626.8,1626.6,0.8055]
[1745310011268,6.14688149,1626.9,1626.6,0.8055]
[1745310011461,6.90862143,1627.4,1626.6,6.95322369]
[1745310011641,3.7638,1627.4,1626.6,0.8055]
[1745310011844,6.14741501,1626.7,1626.4,0.8055]
[1745310012085,6.14892701,1626.3,1626.2,0.8055]
[1745310012263,6.14844049,1626.5,1626.2,0.8055]
[1745310012578,6.14851029,1626.5,1626.2,0.8055]
[1745310013544,6.14798181,1626.6,1626.2,0.8055]
[1745310013875,6.14798181,1626.6,1626.2,1.54769371]
[1745310014052,6.14798181,1626.6,1626.2,7.6969413]
[1745310014251,6.14798181,1626.6,1626.2,1.54769371]
[1745310014672,6.14845809,1626.5,1626.2,1.54769371]
[1745310014873,6.14845809,1626.5,1626.2,0.8055]
[1745310015072,12.29696939,1626.5,1626.2,0.8055]
[1745310015670,6.1485603,1626.4,1626.2,0.8055]
[1745310015875,12.22759044,1626.7,1626.0,0.8055]
[1745310016077,6.14922321,1626.3,1626.0,0.8055]
[1745310016388,6.14934913,1626.2,1626.0,0.8055]
[1745310017160,12.29840391,1626.3,1626.0,0.8055]
[1745310017593,6.14913575,1626.3,1626.0,0.8055]
[1745310019102,12.29837226,1626.3,1626.0,0.8055]
[1745310019264,6.14913575,1626.3,1626.0,0.8055]
[1745310019463,6.14943345,1626.2,1626.0,0.8055]
[1745310019978,7.30985306,1626.2,1625.7,3.0]
[1745310020167,6.15125113,1625.7,1625.5,0.8055]
[1745310020362,6.1515748,1625.6,1625.5,0.8055]
[1745310020761,6.1515748,1625.6,1625.3,3.0]
[1745310020963,6.15125113,1625.7,1625.3,3.99585766]
[1745310021203,6.15125113,1625.7,1625.3,7.14834963]
[1745310021375,6.15148244,1625.7,1625.2,7.4217432]
[1745310021561,6.15178998,1625.6,1625.2,7.4217432]
[1745310021763,6.1514082,1625.7,1625.3,6.15265632]
[1745310022195,6.15097447,1625.8,1625.3,6.15253757]
[1745310022400,12.23062068,1625.9,1625.5,6.15192223]
[1745310022596,6.08,1625.9,1625.6,0.8055]
[1745310022896,12.2304438,1625.9,1625.6,0.8055]
[1745310023401,6.15096809,1625.8,1625.6,0.8055]
[1745310023799,12.23066123,1625.9,1625.6,0.8055]
[1745310024484,6.08,1626.3,1625.9,7.50023975]
[1745310024689,2.01935904,1626.6,1626.0,6.14987153]
[1745310024690,6.14880182,1626.4,1626.0,6.14987153]
[1745310025427,12.29763668,1626.4,1626.0,6.14979093]
[1745310025721,6.14894423,1626.3,1625.9,6.95006256]
[1745310026322,6.14894423,1626.3,1625.9,7.40295832]
[1745310026528,12.29816428,1626.3,1625.9,6.95006256]
[1745310026723,6.14931259,1626.2,1625.9,6.95006256]
[1745310026912,7.37876066,1626.3,1625.9,6.95006256]
[1745310027433,6.14747615,1626.7,1625.9,6.95006256]
[1745310027434,6.08,1626.8,1626.5,6.14803292]
[1745310027590,6.08,1627.0,1626.4,6.398]
[1745310027788,6.14854894,1626.4,1626.3,0.7998]
[1745310028006,7.3782371,1626.4,1626.1,10.1978]
[1745310028225,1.22968816,1626.4,1626.1,16.34742716]
[1745310028523,6.14833265,1626.5,1626.1,10.1978]
[1745310028896,6.14833265,1626.5,1626.1,16.34744248]
[1745310029310,6.08,1626.6,1626.3,9.14872902]
[1745310029544,6.08,1626.6,1626.2,3.55]
[1745310029703,12.22796793,1626.6,1626.2,9.69918087]
[1745310029892,12.22791552,1626.6,1626.2,9.69918087]
[1745310030093,12.22791552,1626.6,1626.2,15.84829003]
[1745310030329,6.08,1626.6,1626.3,6.14880145]
[1745310031036,6.08,1626.8,1626.6,6.14742769]
[1745310031245,6.14693619,1626.9,1626.5,13.34472121]
[1745310031534,6.14708463,1626.8,1626.5,7.1968]
[1745310031735,6.14708463,1626.8,1626.6,0.2585794]
[1745310031939,6.14741501,1626.7,1626.6,0.2585794]
[1745310032294,8.17308671,1626.8,1626.2,13.34509032]
[1745310032295,6.14815475,1626.6,1626.2,13.34509032]
[1745310032495,6.14856511,1626.4,1626.3,0.24188737]
[1745310032741,6.14919377,1626.3,1626.0,0.7998]
[1745310032940,6.14919377,1626.3,1626.1,0.22173009]
[1745310033100,6.14930512,1626.2,1626.1,0.22173009]
[1745310033300,6.08,1626.2,1626.1,0.22173009]
[1745310033915,6.08,1626.2,1626.1,6.94948329]
[1745310034115,6.08,1626.4,1626.1,7.17121338]
[1745310034319,12.22871085,1626.4,1626.1,1.02153009]
[1745310034522,6.14930512,1626.2,1626.1,0.22173009]
[1745310034739,6.14916022,1626.3,1625.9,9.15033029]
[1745310034900,6.14931101,1626.2,1626.0,0.22173009]
[1745310035930,6.08,1626.1,1626.0,0.22173009]
[1745310036842,12.22968329,1626.1,1626.0,0.22173009]
[1745310037237,12.22968329,1626.1,1625.8,0.7998]
[1745310037414,13.45265162,1626.1,1626.0,0.20325258]
[1745310037600,6.15062039,1625.9,1625.6,3.7998]
[1745310037916,6.15062039,1625.9,1625.5,12.55280272]
[1745310037917,6.08,1625.9,1625.5,6.15180272]
[1745310038123,6.08,1625.9,1625.4,7.2008]
[1745310038124,6.1513392,1625.7,1625.4,7.2008]
[1745310038434,6.1508908,1625.8,1625.5,0.34068537]
[1745310039241,6.9472888,1625.9,1625.4,13.35290206]
[1745310039536,6.1506888,1625.9,1625.5,7.52116274]
[1745310039736,6.15097843,1625.8,1625.4,13.35302924]
[1745310039907,6.15097843,1625.8,1625.4,13.82110832]
[1745310040110,6.15120109,1625.7,1625.4,13.82110832]
[1745310040301,6.15061314,1625.9,1625.4,13.82096099]
[1745310040502,6.15101097,1625.8,1625.4,13.3529521]
[1745310040932,6.1506688,1625.9,1625.5,6.15190012]
[1745310041141,12.3013804,1625.9,1625.6,0.34010679]
[1745310041306,12.23026395,1626.0,1625.6,6.49145045]
[1745310041639,6.15056813,1625.9,1625.6,0.34010679]
[1745310041825,6.15056813,1625.9,1625.5,6.15169268]
[1745310042019,6.15056813,1625.9,1625.7,0.21280217]
[1745310042325,6.15056813,1625.9,1625.8,0.21280217]
[1745310042529,6.15108514,1625.8,1625.4,15.35850038]
[1745310042714,6.15108514,1625.8,1625.5,0.55234357]
[1745310043524,6.08,1625.7,1625.6,0.3395414]
[1745310044004,6.08,1625.7,1625.6,0.55234357]
[1745310045604,6.08,1625.7,1625.6,0.21280217]
[1745310047145,6.08,1625.7,1625.4,15.35842619]
[1745310047345,6.08,1625.7,1625.5,0.21280217]
[1745310047711,6.08,1625.7,1625.6,0.33960659]
[1745310048126,12.2311964,1625.7,1625.6,0.55240876]
[1745310048540,6.08,1625.7,1625.6,0.55240876]
[1745310048744,6.08,1625.7,1625.6,0.21280217]
[1745310048943,6.08,1625.7,1625.4,13.35288046]
[1745310049252,6.08,1625.7,1625.5,0.21280217]
[1745310050950,6.08,1625.7,1625.6,0.33996827]
[1745310051439,6.08,1625.7,1625.6,0.55277044]
[1745310052148,6.08,1625.7,1625.6,0.21280217]
[1745310052366,12.2311964,1625.7,1625.4,13.35294128]
[1745310052652,12.2311964,1625.7,1625.5,0.21280217]
[1745310053651,12.23119717,1625.7,1625.5,0.21280217]
[1745310053949,6.08,1625.7,1625.5,0.21280217]
[1745310054947,12.23139216,1625.7,1625.5,0.21280217]
[1745310056353,18.38293112,1625.7,1625.5,0.21280217]
[1745310056647,6.1515748,1625.6,1625.5,0.21280217]
[1745310056815,14.06968527,1625.7,1625.5,0.21280217]
[1745310057015,14.06968527,1625.7,1625.3,9.60307994]
[1745310057216,14.06968527,1625.7,1625.6,0.21851242]
[1745310057416,6.1516654,1625.6,1625.4,0.34026237]
[1745310058075,12.23139216,1625.7,1625.4,0.34026237]
[1745310058246,12.23139216,1625.7,1625.3,6.60307994]
[1745310058442,12.23139216,1625.7,1625.3,6.60307415]
[1745310058643,12.23139216,1625.7,1625.3,12.75557388]
[1745310058872,12.23139216,1625.7,1625.4,6.15232847]
[1745310059261,12.23139216,1625.7,1625.5,0.34052559]
[1745310059733,6.08,1625.7,1625.5,6.49242834]
[1745310059940,6.08,1625.7,1625.6,14.27089113]
[1745310060152,6.08,1625.7,1625.6,14.20937339]
[1745310060369,6.08,1625.7,1625.6,16.245501]
[1745310060564,6.08,1625.7,1625.6,22.648501]
[1745310060736,6.08,1625.7,1625.6,7.54182559]
[1745310061180,6.15086963,1625.8,1625.6,7.54182559]
[1745310061367,6.15086963,1625.8,1625.6,6.74352559]
[1745310061866,6.15062458,1625.9,1625.6,6.74352559]
[1745310062065,12.22970011,1626.1,1625.7,0.34052559]
[1745310062285,6.15099004,1625.8,1625.7,0.34052559]
[1745310063083,6.15121548,1625.7,1625.5,0.34052559]
[1745310063683,12.30214614,1625.8,1625.5,0.34052559]
[1745310063842,6.15099004,1625.8,1625.5,0.34052559]
[1745310064043,6.92897167,1625.9,1625.5,6.49223147]
[1745310064355,6.92897167,1625.9,1625.6,0.34052559]
[1745310065289,6.15081805,1625.8,1625.7,0.34052559]
[1745310065750,12.23081805,1625.8,1625.7,0.34052559]
[1745310065907,13.53879702,1625.8,1625.7,0.34052559]
[1745310066241,13.53879702,1625.8,1625.7,0.56090532]
[1745310066437,12.23081805,1625.8,1625.7,0.56090532]
[1745310069437,12.23081805,1625.8,1625.1,0.7983]
[1745310069438,6.15285755,1625.3,1625.1,0.7983]
[1745310069644,6.9368748,1625.6,1624.9,0.7758]
[1745310069645,6.15351873,1625.1,1624.9,0.7758]
[1745310069934,5.51909468,1625.0,1624.9,0.7758]
[1745310070643,11.67294083,1625.0,1624.8,20.278]
[1745310070846,6.15494026,1624.8,1624.5,1.24666151]
[1745310071149,11.673981,1624.8,1624.5,0.7758]
[1745310071350,11.673981,1624.8,1624.3,13.26213211]
[1745310071525,6.15513545,1624.7,1624.3,19.41841148]
[1745310071853,6.15513545,1624.7,1624.3,13.26207937]
[1745310072060,6.15513545,1624.7,1624.3,19.87773719]
[1745310072228,6.15513545,1624.7,1624.3,13.72145782]
[1745310072557,11.673981,1624.8,1624.4,6.1559929]
[1745310072760,5.51909468,1624.8,1624.4,0.06155899]
[1745310073042,5.51909468,1624.8,1624.5,0.7814]
[1745310073244,11.67382899,1624.8,1624.5,0.7814]
[1745310073445,5.51909468,1624.8,1624.5,0.7814]
[1745310073647,12.84120401,1624.8,1624.5,0.7814]
[1745310073943,6.15511114,1624.7,1624.4,6.15611613]
[1745310074146,6.15519349,1624.7,1624.3,13.72711161]
[1745310074355,6.15586485,1624.5,1624.1,10.47656819]
[1745310074518,11.67446387,1624.6,1624.2,6.1566299]
[1745310074835,13.54035473,1624.6,1624.2,12.31324616]
[1745310075033,13.54035473,1624.6,1624.2,6.15661626]
[1745310075212,13.54035473,1624.6,1624.2,12.31330755]
[1745310075612,7.38498554,1624.6,1624.1,0.4005853]
[1745310075815,6.15665528,1624.3,1624.1,0.4005853]
[1745310076618,6.98572843,1624.4,1624.1,0.4005853]
[1745310077023,6.15649818,1624.3,1624.2,0.19783111]
[1745310077434,6.15649818,1624.3,1624.1,0.4005853]
[1745310077637,6.15649818,1624.3,1624.2,0.19783111]
[1745310078054,6.98572843,1624.4,1624.1,0.4005853]
[1745310078364,6.15649818,1624.3,1624.2,0.19783111]
[1745310078548,6.15687723,1624.2,1624.1,0.4005853]
[1745310078753,11.67597191,1624.2,1624.1,0.59841641]
[1745310079623,5.51909468,1624.3,1624.1,1.37981641]
[1745310080019,11.67577199,1624.3,1624.1,0.59841641]
[1745310080327,12.84334919,1624.3,1624.1,0.59841641]
[1745310080523,6.15687723,1624.2,1624.1,0.59841641]
[1745310080925,13.67274919,1624.3,1624.1,0.59841641]
[1745310081827,19.82954614,1624.3,1624.1,0.59841641]
[1745310082023,6.15687723,1624.2,1624.1,0.59841641]
[1745310082628,8.13983987,1624.2,1624.1,0.59841641]
[1745310083922,14.48833455,1624.2,1624.1,0.59841641]
[1745310084127,14.48833455,1624.2,1624.1,0.4005853]
[1745310084538,14.48833455,1624.2,1624.1,0.59841641]
[1745310085169,14.48833455,1624.2,1623.6,9.1589801]
[1745310085170,6.15801465,1623.9,1623.2,10.252973]
[1745310085375,6.159312,1623.6,1623.3,0.18134518]
[1745310085571,4.92067827,1623.5,1623.3,0.18134518]
[1745310085757,4.92067827,1623.5,1623.4,13.07888429]
[1745310085961,4.92067827,1623.5,1623.4,13.90038429]
[1745310086141,4.92067827,1623.5,1623.4,14.08172947]
[1745310087180,4.92067827,1623.5,1623.4,4.00284518]
[1745310087354,4.92067827,1623.5,1623.4,10.16275647]
[1745310087879,4.92067827,1623.5,1623.4,14.08172947]
[1745310088663,4.92067827,1624.0,1623.9,6.15801465]
[1745310088977,4.92067827,1624.0,1623.9,13.26328508]
[1745310089778,32.78363251,1624.8,1623.9,13.26328508]
[1745310089779,4.92067827,1624.6,1624.0,0.8215]
[1745310089943,4.92067827,1624.6,1624.3,10.07533893]
[1745310090139,11.07606788,1624.6,1624.4,0.18629743]
[1745310090364,4.92067827,1624.6,1624.3,10.07538209]
[1745310090573,4.92067827,1624.6,1624.4,6.3422426]
[1745310090881,4.92067827,1624.6,1624.4,0.18629743]
[1745310091082,4.92067827,1624.6,1624.4,6.34240436]
[1745310091386,4.92067827,1624.6,1624.5,0.18629743]
[1745310091552,11.07603958,1624.6,1624.3,0.8215]
[1745310091746,6.92001432,1624.5,1624.4,0.18629743]
[1745310092077,6.15578601,1624.5,1624.1,18.65002695]
[1745310092279,12.79915014,1624.6,1624.4,0.18629743]
[1745310092470,12.79915014,1624.6,1624.2,6.15686251]
[1745310092674,4.92067827,1624.6,1624.5,0.18629743]
[1745310092873,4.92067827,1624.6,1624.3,6.15649091]
[1745310093047,4.92067827,1624.6,1624.5,0.18629743]
[1745310093381,11.0760555,1624.6,1624.5,0.18629743]
[1745310093546,11.0760555,1624.6,1624.3,6.15649091]
[1745310093885,11.0760555,1624.6,1624.4,0.18629743]
[1745310094184,11.0760555,1624.6,1624.2,9.15662419]
[1745310094377,11.0760555,1624.6,1624.3,0.18629743]
[1745310094570,12.87559846,1624.6,1624.3,0.18629743]
[1745310095190,6.15595291,1624.5,1624.1,6.336]
[1745310095524,6.92069818,1624.3,1624.2,0.18629743]
[1745310095861,6.92069818,1624.3,1623.9,6.1578308]
[1745310096061,11.07755601,1624.2,1623.8,17.23066869]
[1745310096269,11.07755601,1624.2,1623.8,6.15819569]
[1745310096270,6.15727543,1624.1,1623.8,6.15819569]
[1745310096455,12.87739484,1624.2,1623.7,9.15851295]
[1745310096663,6.15732604,1624.1,1623.7,6.15851295]
[1745310096886,4.92067827,1624.0,1623.7,6.15851295]
[1745310097383,11.07846532,1624.0,1623.6,16.40987232]
[1745310097562,11.84266532,1624.0,1623.6,22.56882497]
[1745310097763,11.84266532,1624.0,1623.7,6.15875232]
[1745310098057,6.15822257,1623.9,1623.6,6.332]
[1745310098371,11.07908601,1623.8,1623.6,3.0]
[1745310098581,11.07908601,1623.8,1623.4,10.07868395]
[1745310099092,4.92067827,1623.8,1623.5,6.15952262]
[1745310099339,11.07911045,1623.8,1623.3,17.23269281]
[1745310099476,11.07911045,1623.8,1623.4,6.15972807]
[1745310099681,12.80284275,1623.8,1623.4,6.15972807]
[1745310099881,0.8299,1623.7,1623.4,6.15970175]
[1745310100082,11.90964931,1623.7,1623.3,16.41116742]
[1745310100919,11.90964931,1623.7,1623.3,10.250973]
[1745310101083,11.90964931,1623.7,1623.3,16.41124938]
[1745310101290,11.90947673,1623.7,1623.3,16.41124938]
[1745310101486,11.90947673,1623.7,1623.3,16.41105978]